[Event "E Women's Candidates Tournament 2022-23"]
[Site "Chess.com"]
[Date "2023.03.30"]
[Round "4"]
[White "Lei, Tingjie"]
[Black "Tan, Zhongyi"]
[Result "1-0"]
[WhiteElo "2545"]
[BlackElo "2526"]
[ECO "D31"]
[EventDate "2023.??.??"]
[Annotator "pigle"]
[PlyCount "157"]
[Beauty "5365487903241"]
[EventType "match"]
[EventRounds "4"]
[EventCountry "FID"]
[TimeControl "5400+30"]

{[%evp 0,55,26,26,26,6,4,4,29,8,8,4,4,3,4,3,3,3,25,-1,41,-14,27,34,34,36,36,36,36,38,38,38,33,19,32,34,47,47,47,47,121,121,121,100,99,74,77,85,85,82,85,85,104,94,94,102,108,108]} 
1.d4 d5 2.c4 e6 3.Nf3 dxc4 4.e4 ( 4.e3 {is more popular and solid, heading for the main line of the Queen's Gambit Accepted. The move played in the game leads to sharper positions.} ) 4...b5 5.a4 c6 6.Nc3 {A rare move, but the game will quickly transpose to a well-known position.} ( 6.axb5 cxb5 7.b3 Bb7 {This position was played in a great game from Kasparov's last tournament before announcing his retirement.} ( 7...Nf6 {is also possible.} ) 8.bxc4 Bxe4 9.cxb5 Nf6 {Vallejo Pons-Kasparov, Linares 2005.} ) 6...Bb4 {Now we're back to a position with more than a thousand games played. It makes sense for Black to try to exploit White's move order with the move 6...b4. Considering the time spent, it's likely Tan didn't expect this opening and was improvising from this moment on.} ( 6...b4 ) 7.Bd2 Qb6 {Another rare move, this time leading to truly unexplored positions already on move eight, something we also saw in the first game of the match.} ( 7...a5 ) ( 7...Nf6 ) 8.Be2 Ne7 {A new move. It makes sense to develop the knight here, to escape from the move e4-e5.} ( 8...Nf6 9.e5 ( 9.Qc2 {was Gromovs-Zimina, Campobasso op 2007.} ) 9...Nd5 10.Ne4 {and White has the typical compensation for the pawn.} ) 9.Qc2 {By protecting the knight, White prepares the thematic break on b3.} ( 9.b3 {is premature due to} 9...Bxc3 10.Bxc3 b4 $1 {[%c_effect b4;square;b4;type;GreatFind;persistent;true]} ) 9...Bb7 ( 9...a5 $5 {[%c_effect a5;square;a5;type;Interesting;persistent;true] Accelerating play on the queenside makes sense. Black is better prepared to face 10.b3 now.} 10.b3 {This move is not forced, but it illustrates Black's idea.} 10...cxb3 11.Qxb3 Ba6 $1 {[%c_effect a6;square;a6;type;GreatFind;persistent;true] with a good position.} ) 10.b3 $1 {[%c_effect b3;square;b3;type;GreatFind;persistent;true]} 10...cxb3 ( 10...Bxc3 $6 {[%c_effect c3;square;c3;type;Inaccuracy;persistent;true]} 11.Qxc3 {This is the point, now the b5-b4 push is not available.} ) 11.Qxb3 a5 $1 {[%c_effect a5;square;a5;type;GreatFind;persistent;true] It's necessary to return the pawn. Exchanging the dark-squared bishop would be positional suicide.} ( 11...Bxc3 $2 {[%c_effect c3;square;c3;type;Mistake;persistent;true]} 12.Bxc3 ) ( 11...bxa4 $6 {[%c_effect a4;square;a4;type;Inaccuracy;persistent;true] This spoils the pawn structure.} 12.Nxa4 Bxd2+ 13.Nxd2 Qxb3 ( 13...Qxd4 $2 {[%c_effect d4;square;d4;type;Mistake;persistent;true]} 14.Qxb7 $1 {[%c_effect b7;square;b7;type;GreatFind;persistent;true]} 14...Qxa1+ 15.Bd1 {White wins material.} ) 14.Nxb3 {With a clear positional advantage for White.} ) 12.axb5 cxb5 13.Bxb5+ Bc6 14.Bd3 {Keeping the bishops gives more chances for an advantage.} ( 14.Bxc6+ Nbxc6 15.d5 exd5 16.exd5 Nd4 $1 {[%c_effect d4;square;d4;type;GreatFind;persistent;true]} 17.Qa4+ Kf8 {Black has a good position despite the king on f8.} ) 14...Nd7 15.O-O O-O 16.Rab1 ( 16.d5 {is usually not good because the d7-knight can jump to c5.} 16...Nc5 $1 {[%c_effect c5;square;c5;type;GreatFind;persistent;true]} ) 16...Rfb8 $2 {[%c_effect b8;square;b8;type;Mistake;persistent;true] This move puts Black in trouble.} ( 16...Rfc8 {is better: the queen can go to d8 next, so the b4-bishop is not pinned anymore. The position is balanced.} ) 17.Bf4 $1 {[%c_effect f4;square;f4;type;GreatFind;persistent;true] This is the problem—the bishop attacks the rook, and White gains precious time to prepare Na2.} 17...Rd8 18.Na2 $1 {[%c_effect a2;square;a2;type;GreatFind;persistent;true] This bishop cannot move, and White is much better.} 18...Nf6 19.Bg5 $6 {[%c_effect g5;square;g5;type;Inaccuracy;persistent;true]} ( 19.Rfe1 $1 {[%c_effect e1;square;e1;type;GreatFind;persistent;true] is more accurate. White will capture the bishop on b4 and win a pawn, with not enough compensation for Black.} ) 19...Rab8 $2 {[%c_effect b8;square;b8;type;Mistake;persistent;true]} ( 19...h6 $1 {[%c_effect h6;square;h6;type;GreatFind;persistent;true] This difficult move is the best defense. The point appears after the natural continuation:} 20.Bxf6 gxf6 21.Nxb4 axb4 22.Qxb4 Qxb4 23.Rxb4 f5 $1 {[%c_effect f5;square;f5;type;GreatFind;persistent;true] with enough counterplay for a draw.} 24.exf5 Bxf3 25.gxf3 Nc6 ) 20.d5 $1 {[%c_effect d5;square;d5;type;GreatFind;persistent;true] The thematic central advance is possible thanks to a tactical detail.} 20...Be8 ( 20...exd5 21.e5 $1 {[%c_effect e5;square;e5;type;GreatFind;persistent;true] White wins a piece.} ) ( 20...Nexd5 {is a desperate measure, but the compensation for the piece is not adequate after} 21.exd5 Bxd5 22.Bc4 ) 21.Qb2 $6 {[%c_effect b2;square;b2;type;Inaccuracy;persistent;true] White has many tempting moves, and it's hard to pick the most accurate. This has always been a flaw in my game: being an indecisive person by nature, I find it difficult to choose just one of several tempting moves. Of course, many other chess players also suffer from this.} ( 21.Nxb4 {seems to be the simpler road to a nearly winning position.} 21...Qxb4 {This is probably the best chance.} ( 21...axb4 22.Be3 $1 {[%c_effect e3;square;e3;type;GreatFind;persistent;true]} 22...Qb7 23.dxe6 fxe6 24.Ng5 {The e6-pawn falls and White has a winning advantage.} ) 22.Qa2 ( 22.Qc2 {is also very good.} ) 22...Qa4 ( 22...Qc3 {meets a beautiful refutation:} 23.dxe6 $3 {[%c_effect e6;square;e6;type;Brilliant;persistent;true]} 23...Qxd3 24.Ne5 {with a decisive double attack on the queen and the pawn on f7.} ) 23.Qxa4 Bxa4 24.Rxb8 Rxb8 25.Ra1 Be8 26.dxe6 fxe6 27.Rxa5 {With an extra pawn (even though the structure is all on the same flank) and the bishop pair, White has a technically won position.} ) 21...Ng6 22.Rfc1 $6 {[%c_effect c1;square;c1;type;Inaccuracy;persistent;true] Again, White has many interesting moves, and this is not the most impressive.} ( 22.e5 Nxd5 23.Bxd8 Qxd8 {This is Black's idea: sacrifice the exchange to get active play.} ) ( 22.Nxb4 axb4 23.Rfe1 $5 {[%c_effect e1;square;e1;type;Interesting;persistent;true] White keeps a dangerous initiative with calm play.} ) 22...h6 $1 {[%c_effect h6;square;h6;type;GreatFind;persistent;true]} 23.Be3 ( 23.Bxf6 gxf6 24.Nxb4 ( 24.Qxf6 exd5 ) 24...axb4 {Here, the advantage is not so clear anymore, although I still prefer White.} ) 23...Qb7 24.Nxb4 axb4 25.Ra1 Rbc8 {This move is criticized by the computer, although its suggested refutation is not so clear to my eyes.} ( 25...Ra8 26.Rxa8 Qxa8 27.Qxb4 exd5 28.e5 Ne4 {This is similar to what will happen in the game.} ) 26.Rxc8 Qxc8 ( 26...Rxc8 $2 {[%c_effect c8;square;c8;type;Mistake;persistent;true]} 27.Ba6 ) 27.Qxb4 ( 27.Bb6 $1 {[%c_effect b6;square;b6;type;GreatFind;persistent;true] The computer is very happy with this move, but let's examine it more closely:} 27...Rd7 $1 {[%c_effect d7;square;d7;type;GreatFind;persistent;true] Forced.} ( 27...Rd6 $2 {[%c_effect d6;square;d6;type;Mistake;persistent;true]} 28.Qxb4 {is very bad for Black.} ) 28.Bb5 $1 {[%c_effect b5;square;b5;type;GreatFind;persistent;true]} 28...Rd6 ( 28...Rb7 $2 {[%c_effect b7;square;b7;type;Mistake;persistent;true]} 29.Ba6 ) 29.Rc1 $1 {[%c_effect c1;square;c1;type;GreatFind;persistent;true] This is the machine's idea. The bishop will go to c7, and White wins the exchange. But I think Black has good practical compensation after} 29...Qa8 30.Bc7 Bxb5 31.Bxd6 Nxe4 32.Qxb4 Qxd5 33.Bg3 {My engine evaluates this as a clear advantage for White, but with active pieces, a pawn for the exchange, and all pawns on the same flank, I think Black has realistic drawing chances. But no doubt, long suffering lies ahead.} ) 27...exd5 28.e5 Ne4 ( 28...d4 $5 {[%c_effect d4;square;d4;type;Interesting;persistent;true] is an interesting sacrifice to activate the pieces.} 29.Bxd4 ( 29.exf6 {Black is saved by a miracle in this line:} 29...dxe3 30.Bxg6 exf2+ 31.Kxf2 fxg6 {and Black escapes with equality.} ) 29...Nd5 ) 29.Rc1 Qe6 {White has some advantage, but not enough for a win. This evaluation will not change for a long time.} 30.Qa5 Rb8 31.Qc7 Ra8 32.h3 Qe7 33.Qxe7 Nxe7 34.Nd4 Ng6 35.e6 ( 35.f4 {is also possible, but Black is still defending.} 35...Bd7 ( 35...Ra3 $2 {[%c_effect a3;square;a3;type;Mistake;persistent;true] It's important to note that this natural move loses after} 36.Bxe4 dxe4 37.Rc8 Rxe3 38.Rxe8+ Kh7 39.f5 $1 {[%c_effect f5;square;f5;type;GreatFind;persistent;true]} 39...Nf4 40.e6 {The e-pawn marches to victory.} ) 36.Rc7 Nf8 ) 35...fxe6 36.Nxe6 Bf7 37.Nc7 Rd8 38.Bd4 Nf4 39.Ba6 Ng5 40.Be5 Ng6 41.Bd4 Nf4 42.h4 Nge6 43.Nxe6 Nxe6 {For now, Tan is defending very well.} 44.Be5 h5 ( 44...Bg6 {is also possible, not committing the pawn structure.} ) 45.Bd3 Re8 46.f4 Rd8 47.Kf2 Nf8 48.Rc6 Ra8 49.Bf5 Nh7 50.Ke3 Ra3+ ( 50...Nf8 ) 51.Bc3 ( 51.Bd3 {is more dangerous:} 51...Ra8 52.f5 {with some pressure.} ) 51...Ra8 52.Rd6 Re8+ 53.Be5 Nf6 54.Ra6 Ne4 {Sacrificing a pawn to arrive in a position with opposite colored bishops, where drawing chances are usually very high.} 55.Kd4 {White declines the offer.} ( 55.Bxe4 dxe4 56.Kxe4 {This endgame should be a draw without much trouble.} ) 55...Ng3 56.Bd3 Ne4 57.Ra7 Rc8 58.Bc7 Re8 59.Be5 Rc8 60.Ra3 Kf8 61.Rb3 Ra8 62.Rb8+ {With this move, White practically accepts that there's no way to avoid a draw. But there's still a surprise to come.} 62...Rxb8 63.Bxb8 g6 64.Ke5 Kg7 ( 64...Nf2 65.Be2 d4 $1 {[%c_effect d4;square;d4;type;GreatFind;persistent;true]} 66.Kxd4 Be6 {This is an easy draw since Black can set up a fortress on the light squares.} ) 65.Ba7 Ng3 66.Bd4 Kf8 67.Kd6 Nf5+ 68.Bxf5 gxf5 69.Ke5 Be8 70.Kxf5 Bd7+ 71.Kg5 Bg4 $4 {[%c_effect g4;square;g4;type;Blunder;persistent;true] Chess is a cruel game sometimes. After conducting a difficult defense for many moves, Tan blunders, and now the game is lost.} ( 71...Be8 $1 {[%c_effect e8;square;e8;type;GreatFind;persistent;true] White can't make progress, for instance:} 72.f5 Kg8 73.g4 hxg4 74.Kxg4 Bf7 75.Kg5 Be8 76.h5 Bf7 77.h6 Be8 78.Kf6 Kh7 79.Ke7 Bh5 {with a draw.} ) 72.Kg6 $1 {[%c_effect g6;square;g6;type;GreatFind;persistent;true]} 72...Be2 73.f5 Bd3 {The bishop needs to prevent the advance of the f-pawn, but now White captures on h5, and the pawns decide the game.} 74.g3 Kg8 75.Kxh5 Bxf5 76.g4 Bd3 77.Kh6 Kf7 78.h5 Ke6 79.Kg7 {Another great fighting game. The match started in the best possible way for the spectators.} 1-0

[Event "Pro Chess League 2023"]
[Site "Chess.com"]
[Date "2023.03.01"]
[Round "3"]
[White "Carlsen, Magnus"]
[Black "Bortnyk, Olexandr"]
[Result "1-0"]
[WhiteElo "2852"]
[BlackElo "2605"]
[ECO "B04"]
[EventDate "2023.??.??"]
[Annotator "rafael"]
[PlyCount "75"]
[Beauty "7835094090246"]
[EventType "schev"]
[EventRounds "3"]
[TimeControl "300+2"]

1.e4 Nf6 2.e5 Nd5 3.d4 d6 4.Nf3 dxe5 {One of the most solid options for Black in the Alekhine Defense. Both the alternatives, 4...Bg4 and 4...g6, were played in the iconic Spassky-Fischer match.} ( 4...Bg4 ) ( 4...g6 ) 5.Nxe5 c6 {Bortnyk is an expert on this system, having played it dozens of times in online games. By the way, Carlsen has also played this a few times.} 6.Bd3 ( 6.Be2 Bf5 7.O-O Nd7 8.Nf3 e6 9.c4 N5f6 {This is the main line of the variation.} ) 6...Nd7 7.O-O ( 7.Nf3 N7f6 8.h3 Nb4 9.Bc4 Bf5 10.Na3 e6 {was equal in Adams-Carlsen Wch Blitz 2007.} ) ( 7.Nxd7 Bxd7 8.O-O g6 9.Nd2 Bg7 10.Nf3 O-O 11.Re1 Bg4 12.c3 c5 {and Black later won a nice game in Topalov-Carlsen, Morelia/Linares 2008.} ) 7...Nxe5 8.dxe5 {Both players had already faced each other in this position but in a bullet game. Bortnyk chose 8...g6, but this time he plays a move that Carlsen knows well, since he played it in his teenage years.} 8...Nb4 ( 8...g6 ) 9.Be4 Qxd1 10.Rxd1 g6 ( 10...f5 {was played by the young Carlsen.} 11.a3 $5 {[%c_effect a3;square;a3;type;Interesting;persistent;true]} 11...Na6 12.Bf3 g6 13.Nd2 Be6 14.Be2 Nc7 15.Nf3 {White has a tiny advantage and later won in Sutovsky-Carlsen, Rethymno 2003.} ) 11.Na3 {A new move.} ( 11.a3 Na6 {White hasn't been able to prove an advantage in the games played in this position.} ) 11...Bg7 12.c3 Na6 13.Nc4 {On the board we have a typical position in which the world champion feels good. Objectively, White doesn't have much, but with his magnificent endgame technique, he manages to exert pressure.} 13...O-O ( 13...Nc5 14.Bc2 Bg4 15.f3 Be6 16.Na5 Bxe5 17.Be3 Nd7 18.Nxb7 Rb8 19.Na5 Rxb2 {with a sharp but balanced position.} ) 14.Be3 Nc7 15.a4 Nd5 16.Bd4 b6 $6 {[%c_effect b6;square;b6;type;Inaccuracy;persistent;true] This is an error that will be exploited immediately. Black keeps the disadvantage to a minimum after} ( 16...Be6 17.Na5 Rab8 ) 17.a5 $1 {[%c_effect a5;square;a5;type;GreatFind;persistent;true] The bishop on d4 turns into a monster now. He will be the main piece responsible for White's victory.} 17...b5 18.Ne3 Be6 19.a6 $1 {[%c_effect a6;square;a6;type;GreatFind;persistent;true] An excellent move, fixing the a7-pawn as a target.} ( 19.Bxd5 {is another option. The game might follow:} 19...cxd5 ( 19...Bxd5 20.Nxd5 cxd5 21.Bc5 {with good winning chances.} ) 20.Bc5 ( 20.a6 {is possible in this version, too.} ) 20...Rfc8 21.Bxe7 Bxe5 22.Nxd5 {White wins a pawn, but the bishop pair offers drawing chances.} ) 19...Rfc8 20.Nxd5 Bxd5 {The best. After} ( 20...cxd5 21.Bd3 {Black is left with a bad bishop.} ) 21.Bxd5 cxd5 22.Ra3 Rc7 23.Rb3 Rb8 24.Ra1 {Black is doing what he can to defend the queenside, but now White threatens 25.Ra5, and the situation is critical.} 24...e6 $2 {[%c_effect e6;square;e6;type;Mistake;persistent;true] This loses.} ( 24...f6 $1 {[%c_effect f6;square;f6;type;GreatFind;persistent;true] is the only chance. Black desperately needs to fight against the bishop on d4. The idea is revealed after} 25.f4 ( 25.exf6 Bxf6 $1 {[%c_effect f6;square;f6;type;GreatFind;persistent;true]} ) 25...Kf7 26.Ra5 fxe5 27.fxe5 Ke6 $1 {[%c_effect e6;square;e6;type;GreatFind;persistent;true] Just in time for the counterplay.} ) 25.Ra5 Rc6 26.g3 $1 {[%c_effect g3;square;g3;type;GreatFind;persistent;true] Giving some breathing space for the king and preparing to collect a pawn on the queenside.} 26...Bf8 27.Bxa7 Ra8 28.Bd4 Rcxa6 29.Rxa6 Rxa6 30.Rxb5 {White is a pawn up with the b-pawn ready to roll. Against Carlsen, the position can be resigned.} 30...g5 31.Kg2 g4 32.Rb7 Bh6 33.b4 Ra3 34.b5 Rb3 35.b6 Bd2 36.Rc7 Kg7 37.b7 Bxc3 38.Bxc3 {The bishop had to move from the throne, right on the last move of the game, but for a good cause.} 1-0